Cogmind - Beta 10.1 @@@ ROGUE MODE // 2020.10.28 @ 13:55:26 Player: Atherys Result: Destroyed by G-47 Trooper with Particle Gun Performance ------------- Evolutions (2) 1000 Regions Visited (4) 800 Robots Destroyed (36) 180 Value Destroyed (1002) 1002 Prototype IDs (6) 120 Alien Tech Used (0) 0 Bonus (46) 46 TOTAL SCORE: 3148 Bonus ------- Follower Combat Kills 46 Cogmind --------- Core Integrity 0/550 Matter 40/300 Energy 100/100 System Corruption 5% Temperature Cool (9) Movement Core (1100) Ox21 Location -8/Materials Parts ------- > --- POWER (2) -------- (None) > --- PROPULSION (4) --- (None) > --- UTILITY (3) ------ High-capacity Storage Unit High-capacity Storage Unit > --- WEAPON (2) ------- (None) > --- INVENTORY (20) --- Light Ion Engine Heavy Ion Engine Armored Wheel Compact Battery (300) Target Analyzer System Shield Long-range Tractor Beam Small Laser Beam Rifle Datajack Improved Datajack Peak State ------------ > --- POWER ------------ Heavy Ion Engine Nuclear Core > --- PROPULSION ------- Armored Wheel Armored Wheel Armored Wheel > --- UTILITY ---------- High-capacity Storage Unit High-capacity Storage Unit Transmission Jammer > --- WEAPON ----------- Advanced Assault Cannon Advanced Assault Cannon > --- INVENTORY -------- Light Ion Engine Heavy Ion Engine Armored Wheel Compact Battery Target Analyzer System Shield Long-range Tractor Beam Small Laser Beam Rifle Datajack Improved Datajack [Rating: 27] Favorites ----------- Power Heavy Ion Engine Engine Heavy Ion Engine Power Core Light Nuclear Core Propulsion Armored Wheel Leg Titanium Leg Wheel Armored Wheel Utility Large Storage Unit Device Transmission Jammer Storage Large Storage Unit Weapon Improved Light Cannon Energy Gun Improved Medium Laser Energy Cannon Particle Cannon Ballistic Gun Light Assault Rifle Ballistic Cannon Improved Light Cannon Launcher Grenade Launcher Build | -11 -10 -10 -9 -8 ------- Run | Scr Mat Min Mat Mat Slots Evolved 4 | . . . 2 2 Power 1 | . . . 1 . Propulsion 2 | . . . 1 1 Utility 1 | . . . . 1 Weapon . | . . . . . Parts Attached 40 | 6 5 3 19 7 Power 9 | 1 1 1 5 1 Engine 7 | 1 1 . 5 . Core 2 | . . 1 . 1 Reactor . | . . . . . Propulsion 8 | 2 . 1 5 . Treads . | . . . . . Leg 3 | . . 1 2 . Wheel 5 | 2 . . 3 . Hover . | . . . . . Flight . | . . . . . Utility 6 | 1 2 . 2 1 Device 1 | . . . . 1 Storage 5 | 1 2 . 2 . Processor . | . . . . . Hackware . | . . . . . Protection . | . . . . . Artifact . | . . . . . Weapon 17 | 2 2 1 7 5 Energy Gun 7 | 2 1 . 2 2 Energy Cannon 1 | . . . 1 . Ballistic Gun 3 | . 1 . 2 . Ballistic Cannon 5 | . . . 2 3 Launcher 1 | . . 1 . . Special Weapon . | . . . . . Impact Weapon . | . . . . . Slashing Weapon . | . . . . . Piercing Weapon . | . . . . . Special Melee Weapon . | . . . . . Unidentified Prototypes 4 | . . . 3 1 Parts Lost 14 | . 4 1 2 7 Power 4 | . 1 . 1 2 Propulsion 5 | . 1 1 . 3 Utility . | . . . . . Weapon 5 | . 2 . 1 2 Highest Loss Streak 4 | . 4 1 1 4 Average Slot Usage (%) 84 | . 85 89 92 71 Engine 12 | . 12 4 15 13 Core 4 | . . 9 4 3 Leg 8 | . . 13 14 . Wheel 13 | . 21 4 13 17 Device 1 | . . . . 3 Storage 22 | . 23 28 22 18 Energy Gun 5 | . 20 1 7 2 Ballistic Gun 5 | . 6 14 5 . Ballistic Cannon 6 | . . . 6 13 Launcher 3 | . . 12 1 . Naked Turns . | . . . . . Heaviest Build 94 | 10 37 41 88 94 Greatest Support 37 | 20 20 17 37 36 Greatest Overweight (x) 31 | . 3 3 15 31 Average Overweight (x) 1 | . 1 2 1 3 Largest Inventory Capacity 20 | 6 16 16 20 20 Average Capacity 16 | 5 11 16 16 20 Most Carried 12 | . 1 8 12 12 Average Carried 8 | . . 6 9 11 Final Capacity 20 | 6 16 16 20 20 Final Carried 11 | . 1 7 11 11 Class Distribution -------------------- 50% | Mutant 38% | Hauler-Mutant 11% | Scavenger-Mutant Dominant Class ---------------- Mutant | -10/Materials Mutant | -10/Mines Mutant | -9/Materials Hauler-Mutant | -8/Materials Resources | -11 -10 -10 -9 -8 ----------- Run | Scr Mat Min Mat Mat Matter Collected 729 | 71 182 130 181 165 Remotely . | . . . . . Salvage Created 1008 | . 182 51 572 203 Parts 80 | . 15 3 42 20 Haulers Intercepted 1 | . . . . 1 Recyclers Shooed 3 | . . . 2 1 Parts Field Recycled . | . . . . . Retrieved Matter . | . . . . . Parts Self-Destructed . | . . . . . Prevented . | . . . . . Kills | -11 -10 -10 -9 -8 ------- Run | Scr Mat Min Mat Mat Combat Hostiles Destroyed 30 | . 6 3 16 5 Guns 19 | . 6 2 11 . Cannons 9 | . . . 4 5 AOE 1 | . . 1 . . Classes Destroyed 6 | . 2 . 3 1 Hauler 1 | . . . . 1 Operator 2 | . . . 1 1 Watcher 3 | . . . 2 1 Swarmer 11 | . 3 1 6 1 Grunt 10 | . 3 2 4 1 Sentry 9 | . . . 6 3 Best Kill Streak 3 | . 3 2 3 2 Combat Bots Only 3 | . 3 2 3 1 Max Kills in Single Turn 1 | . 1 1 1 1 Gunslinging . | . . . . . Exploded 1 | . . 1 . . Melee . | . . . . . Uniques/NPCs Destroyed . | . . . . . Combat | -11 -10 -10 -9 -8 -------- Run | Scr Mat Min Mat Mat Damage Taken 2982 | 3 304 109 771 1795 Core 702 | . 35 11 105 551 Absorbed by Shields . | . . . . . Core Remaining (%) 84 | 100 . 81 73 . Volleys Fired 115 | . 24 7 53 31 Largest 2 | . 2 2 2 2 Hottest 112 | . 80 50 112 102 Shots Fired 213 | . 40 13 99 61 Gun 123 | . 40 7 68 8 Cannon 84 | . . . 31 53 Launcher 6 | . . 6 . . Special . | . . . . . Kinetic 131 | . 11 7 60 53 Thermal 63 | . 16 . 39 8 Explosive 6 | . . 6 . . Electromagnetic 13 | . 13 . . . Robot Hit Streak 8 | . 4 6 8 5 Robot Miss Streak 6 | . 4 1 6 4 Penetration Max . | . . . . . Secondary Targets . | . . . . . Shots Hit Robots 115 | . 18 9 56 32 Core Hits 51 | . 11 5 24 11 Critical Hits . | . . . . . Critical Kills . | . . . . . Critical Parts Destroyed . | . . . . . Melee Attacks . | . . . . . Impact . | . . . . . Slashing . | . . . . . Piercing . | . . . . . Sneak Attacks . | . . . . . Combat Hostiles . | . . . . . Follow-up Attacks . | . . . . . Damage Inflicted 2307 | 6 187 278 991 845 Guns 930 | . 177 35 616 102 Cannons 973 | . . . 315 658 Explosions 243 | . . 243 . . Melee . | . . . . . Ramming 161 | 6 10 . 60 85 Kinetic 1248 | . 63 35 492 658 Thermal 596 | . 55 . 439 102 Explosive 243 | . . 243 . . Electromagnetic 59 | . 59 . . . Impact . | . . . . . Slashing . | . . . . . Piercing . | . . . . . Highest Corruption 5 | . . . 1 5 Average Corruption 2 | . . . 1 4 Corruption Purged . | . . . . . Effects 14 | . . . 4 10 Message Errors 6 | . . . 1 5 Matter Fused 1 | . . . . 1 Heat Flow Errors 2 | . . . . 2 Energy Discharges 3 | . . . 2 1 Parts Rejected 1 | . . . . 1 Weapon Failures 1 | . . . 1 . Overload Shots . | . . . . . Overflow Damage 33 | . . . 1 32 Projectiles 11 | . . . 1 10 Explosions . | . . . . . Melee 22 | . . . . 22 Knockbacks 8 | . . . 4 4 Impact 1 | . . . 1 . Kinetic 7 | . . . 3 4 Secondary . | . . . . . Self-Inflicted Damage 71 | 3 5 . 23 40 Shots . | . . . . . Rammed 13 | 2 1 . 4 6 Targets Rammed 16 | 2 1 . 7 6 Kicked 3 | . . . 3 . Crushed . | . . . . . Highest Temperature 441 | . 140 44 356 441 Average Temperature 115 | . 66 20 126 130 Received Heat Transfer 1179 | . 30 63 249 837 Effects 5 | . . . 2 3 Shutdowns 2 | . . . . 2 Energy Bleed 2 | . . . 1 1 Short Circuit 1 | . . . 1 . Siege Activations . | . . . . . Robots Corrupted . | . . . . . Combat Hostiles . | . . . . . Parts Fried . | . . . . . Impact Corruptions 1 | . . . . 1 Robots Melted 1 | . . . 1 . Combat Hostiles 1 | . . . 1 . Parts Melted 3 | . . . 3 . Heat Transferred 1272 | . 125 . 925 222 Parts Sabotaged . | . . . . . Parts Stolen . | . . . . . Parts Stripped . | . . . . . Power Chain Reactions . | . . . . . Missiles Intercepted . | . . . . . Alert | -11 -10 -10 -9 -8 ------- Run | Scr Mat Min Mat Mat Peak Influence 389 | . 100 114 389 320 Initial 116 | . . 39 . 116 Average 142 | . 32 50 199 180 Maximum Alert Level 1 | . . . 1 1 Low Security (%) 70 | 100 100 100 49 64 Level 1 29 | . . . 50 35 Level 2 . | . . . . . Level 3 . | . . . . . Level 4 . | . . . . . Level 5 . | . . . . . High Security . | . . . . . Max Security . | . . . . . Squads Dispatched 8 | . 1 1 4 2 Investigation 6 | . 1 1 3 1 Extermination . | . . . . . Reinforcement 2 | . . . 1 1 Assault . | . . . . . Garrison . | . . . . . Intercept . | . . . . . Construction Impeded . | . . . . . Haulers Reinforced . | . . . . . Stealth | -11 -10 -10 -9 -8 --------- Run | Scr Mat Min Mat Mat Distress Signals . | . . . . . Communications Jammed . | . . . . . Distress Signals . | . . . . . Times Spotted 51 | . 6 3 26 16 Peak Tracking Total 5 | . 4 2 5 3 Tactical Retreats 7 | . . . 4 3 Traps | -11 -10 -10 -9 -8 ------- Run | Scr Mat Min Mat Mat Traps Triggered 2 | . 1 . 1 . Indirectly . | . . . . . Trap Hack Attempts . | . . . . . Triggered . | . . . . . Disarmed . | . . . . . Reprogrammed . | . . . . . Reused . | . . . . . Traps Extracted . | . . . . . Installed . | . . . . . Triggered . | . . . . . Machines | -11 -10 -10 -9 -8 ---------- Run | Scr Mat Min Mat Mat Machines Disabled 3 | . . . 1 2 Max in Single Turn 1 | . . . 1 1 Machines Sabotaged . | . . . . . Garrisons Compromised . | . . . . . Overloaded Fab Kills . | . . . . . Fab Network Shutdowns . | . . . . . Hacking | -11 -10 -10 -9 -8 --------- Run | Scr Mat Min Mat Mat Machines Accessed 9 | . . 1 5 3 Terminals 7 | . . . 4 3 Fabricators . | . . . . . Repair Stations . | . . . . . Recycling Units 1 | . . . 1 . Scanalyzers . | . . . . . Garrison Access . | . . . . . Total Hacks 22 | . . 1 13 8 Successful 12 | . . 1 9 2 Failed 10 | . . . 4 6 Catastrophic 2 | . . . 1 1 Database Lockouts . | . . . . . Manual 10 | . . . 7 3 Terminals 19 | . . . 11 8 Fabricators . | . . . . . Repair Stations . | . . . . . Recycling Units 2 | . . . 2 . Scanalyzers . | . . . . . Garrison Access . | . . . . . Terminal Hacks 3 | . . 1 1 1 Prototype ID Bank 1 | . . . 1 . Open Door 1 | . . 1 . . Scanalyzer Index 1 | . . . . 1 Fabricator Hacks . | . . . . . Repair Station Hacks . | . . . . . Recycling Unit Hacks 1 | . . . 1 . Retrieve Components 1 | . . . 1 . Scanalyzer . | . . . . . Garrison Access Hacks . | . . . . . Unauthorized Hacks 8 | . . . 7 1 Terminals 8 | . . . 7 1 Track 2 | . . . 1 1 Assimilate 1 | . . . 1 . Botnet 4 | . . . 4 . Operators 1 | . . . 1 . Fabricators . | . . . . . Repair Stations . | . . . . . Recycling Units . | . . . . . Scanalyzers . | . . . . . Garrison Access . | . . . . . Data Cores Recovered 1 | . . . . 1 Used . | . . . . . Hacking Detections 7 | . . . 4 3 Full Trace Events 5 | . . . 2 3 Feedback Events 2 | . . . 1 1 Corruption 2 | . . . 1 1 Feedback Blocked . | . . . . . Robot Schematics Acquired . | . . . . . Robots Built . | . . . . . Matter . | . . . . . Time . | . . . . . Total Robot Build Rating . | . . . . . Part Schematics Acquired . | . . . . . Parts Built . | . . . . . Matter . | . . . . . Time . | . . . . . Total Part Build Rating . | . . . . . Parts Repaired . | . . . . . Time . | . . . . . Parts Recycled . | . . . . . Recycled Matter . | . . . . . Retrieved Matter . | . . . . . Retrieved Components 9 | . . . 9 . Parts Scanalyzed . | . . . . . Part Schematics Acquired . | . . . . . Parts Damaged . | . . . . . Bothacking | -11 -10 -10 -9 -8 ------------ Run | Scr Mat Min Mat Mat Used RIF Installer . | . . . . . Robots Hacked . | . . . . . Non-combat . | . . . . . Combat . | . . . . . Robot Hacks Applied . | . . . . . Relay Couplers Released . | . . . . . Robots Rewired . | . . . . . Allies Hacked . | . . . . . Hacks Repelled . | . . . . . Allies | -11 -10 -10 -9 -8 -------- Run | Scr Mat Min Mat Mat Total Allies 3 | . . 3 . . Largest Group 3 | . . 3 3 . Highest-Rated Group 40 | . . 40 40 . Highest-Rated Ally 16 | . . 16 16 . Total Orders . | . . . . . Ally Attacks 15 | . . . 15 . Total Damage 176 | . . . 176 . Kills 4 | . . . 4 . Allies Corrupted . | . . . . . Allies Melted . | . . . . . Intel | -11 -10 -10 -9 -8 ------- Run | Scr Mat Min Mat Mat Robot Analysis Total . | . . . . . Derelict Logs Recovered 1 | . . 1 . . Drone Launches . | . . . . . Drone Recoveries . | . . . . . Exploration | -11 -10 -10 -9 -8 ------------- Run | Scr Mat Min Mat Mat Turns Passed 2331 | 35 220 510 863 703 Spaces Moved 1264 | 31 159 255 499 320 Core 15 | 1 . . 2 12 Treads . | . . . . . Legs 448 | . . 247 201 . Wheels 801 | 30 159 8 296 308 Hover . | . . . . . Flight . | . . . . . Fastest Speed 50 | 50 80 110 100 110 Average Speed 143 | 79 91 187 130 161 Slowest Speed 1600 | 80 110 190 800 1600 Overloaded Moves . | . . . . . Propulsion Burnouts . | . . . . . Robots Hopped . | . . . . . Cave-ins Triggered . | . . . . . Exploration Rate (%) 33 | 3 25 51 50 36 Regions Visited 4 Branch Regions 1 Pre-discovered Areas . | . . . . . Known Exits Taken . | . . . . . Unknown Exits Taken 4 | 1 1 1 1 . Scrap Searched 1 | . . 1 . . Spaces Dug . | . . . . . Terrain Destroyed 33 | . . 20 5 8 Melee . | . . . . . Projectile 13 | . . . 5 8 AOE 20 | . . 20 . . Terrain Rammed . | . . . . . Walls Destroyed . | . . . . . Machines Disabled . | . . . . . Actions | -11 -10 -10 -9 -8 --------- Run | Scr Mat Min Mat Mat Total 1509 | 38 193 275 611 392 Wait 42 | . 3 3 15 21 Move 1260 | 30 158 254 498 320 Hop . | . . . . . Pick Up 16 | . 1 7 6 2 Fast Attach 27 | 6 5 1 11 4 Attach 3 | . . . 1 2 Detach . | . . . . . Swap 10 | . . 2 7 1 Drop 20 | . 1 1 13 5 Fire 115 | . 24 7 53 31 Melee . | . . . . . Ram 12 | 2 1 . 3 6 Kick 4 | . . . 4 . Crush . | . . . . . Escape Stasis . | . . . . . Rewire . | . . . . . Trap . | . . . . . Miscellaneous . | . . . . . Route ------- -11/Scrapyard -10/Materials -10/Mines -9/Materials (discovered 3 exits: *Mat x2 / *Min) -8/Materials (discovered 1 exit: [*Fac]) History --------- Turn | Location | Event 11 | -11/Scrapyard | Discovered new exit (range 16) 36 | -11/Scrapyard | Entered Materials 188 | -10/Materials | Lost 4 parts (1p1n2w) 226 | -10/Materials | Discovered new exit (range 15) 256 | -10/Materials | Entered Mines 259 | -10/Mines | Met a Derelict shopkeep closing up shop 305 | -10/Mines | Build established: Mutant 390 | -10/Mines | Learned location of 1 exit from Materials 518 | -10/Mines | Discovered new exit (range 4) 625 | -10/Mines | Assisted by bots powering up and referring to "LRC-V3" 766 | -10/Mines | Entered Materials 766 | -9/Materials | Accompanied by 3 allies 766 | -9/Materials | Evolved 2 slots: Power x1, Propulsion x1 767 | -9/Materials | Identified exit to Mines 1179 | -9/Materials | Discovered new exit (range 15) 1621 | -9/Materials | Discovered new exit (range 9) 1629 | -9/Materials | Entered another Materials area 1629 | -8/Materials | Evolved 2 slots: Propulsion x1, Utility x1 1734 | -8/Materials | Build established: Hauler-Mutant 2068 | -8/Materials | Discovered new exit (range 16) 2115 | -8/Materials | Lost 3 parts (3n) 2294 | -8/Materials | Core integrity fell below 50% 2312 | -8/Materials | Core integrity fell below 20% 2316 | -8/Materials | Lost 4 parts (2p2w) 2332 | -8/Materials | Destroyed by G-47 Trooper with Particle Gun Last Messages --------------- 02215_ K-01 Serf collects debris. 02219_ U-05 Engineer builds a Wall. 02220_ K-01 Serf cleans the Terminal. 02234_ K-01 Serf collects debris. 02236_ System corrupted: Heat flow error (+127). 02238_ K-01 Serf cleans the Terminal. 02243_ Slammed into G-47 Trooper. 02243_ Nuclear Core permanently disabled. 02243_ Destabilizing: Short circuit. 02259_ Slammed into G-47 Trooper. 02266_ Adv. Assault Cannon destroyed. 02275_ Slammed into G-47 Trooper. 02276_ Hvy. Ion Engine destroyed. 02285_ Broken Nuclear Core destroyed. 02289_ Slammed into G-47 Trooper. 02289_ Transmission Jammer permanently disabled. 02289_ Destabilizing: Short circuit. 02291_ System corrupted: Broken Transmission Jammer rejected. 02292_ R-06 Scavenger collects Broken Transmission Jammer. 02318_ FCK2YB#U0CHB3N,X| 0UXKY4V:W|LINPXV1 Map ----- +----------------------------------------------------+ | | | | | | | | | | | | | ??????????????????????????????????? | | ??????????????????????????????????? | | ??????????????????????????????????? | | ??????????????????????????????????? | | ??????????????????????????????????? | | ??????????????????????????????????? | | ??????????????????????????????????? | | ??????????????????????????????????? | | ??????????????????????????????????? | | ??????????????????????????????????? | | ??????????????????????????????????? | | ??????????????????????????????????? | | ??????????????????????????????????? | | ???????????????????????#####??????? | | ???????????????????????# #??????? | | ???????????????????????# < #??????? | | ???????????????????????# #??????? | | ???????????????????????# #??????? | | ???????????????????????# #??????? | | ???????????????????????# @ #??????? | | ???????????????????????# #??????? | | ????????????????######## #??????? | | ????????????????#[ ] # g#??????? | | ????????????????# #g #??????? | | ????????????????# + #???#### | | ????????????????# "T" # #?? # | | ????????????????# """ # #?? # | | ????????????????# # #? # | | ????????????????### #### #? # | | ??????????????????###### # # | | ???????????????????????# # """ # | | ???????????????????????# + """ # | | ???????????????????????# # """ # | | ???????????????????????# # # | | ???????????????????????# #?""" # | | ???????????????????????# #?""" # | | ???????????????????????# #??"" # | | ???????????????????????# #?? # | | ???????????????????????# #???#??# | | ???????????????????????# #??????? | | ???????????????????????# ######## | | ???????????????????????# # # | | ???????????????????????# # """ # | | ????#?????#???##???????# # """ # | +----------------------------------------------------+ Best States ------------- Heat Dissipation 31 Energy Generation 23 Energy Capacity 460 Matter Stores 300 Matter Capacity 300 Sight Range 16 Terrain Scan Density 10 Jamming Range 8 Evasion (%) 44 Item Schematics ----------------- None Robot Schematics ------------------ None Fabricated ------------ Nothing Alien Tech Used ----------------- None Achievements -------------- It's Just You Challenges ------------ None Game ------ Seed AdvancedSmartbombConverter Manual? 0 Play Time 00:18:50 Cumulative 21.2 hours Start 2020.10.28 @ 13:37:49 End 2020.10.28 @ 13:55:26 Sessions 1 Manual Loads 0 Difficulty Rogue Special Mode None Game No. 39 Rogue 39 Adventurer 0 Explorer 0 Win Type - Total 0 Types 0/0/0/0/0/0/0/0/0 Lore% 20 Gallery% 25 Achievement% 23 Wizard Run 0 Options --------- ASCII 0 Keyboard 0 Movement Mouse Keybinds 0 Fullscreen 2 Font 24/Smallcaps Map View 76x50 Tactical HUD 1 Map Filters NONE Filters NONE Steam X RUN: dc968158-d428-4694-a193-92245fb36e7d